fUSD/lending_fUSD_20251013
["ID","MTS","AMOUNT","RATE_DAILY","PERIOD"]
[391102227,1760344231435,-68.79953105,0.00013086,2]
[391102228,1760344231444,-2334.01,0.00013876,2]
[391102229,1760344231454,-431.20046895,0.00014395,2]
[391102230,1760344231463,-198.95642305,0.00014661,2]
[391102231,1760344231471,-880.79340993,0.00014687,2]
[391102232,1760344231481,-1200.0,0.00014696,2]
[391102233,1760344231490,-300.0,0.00014696,2]
[391102234,1760344231501,-150.0,0.00014696,2]
[391102235,1760344231511,-2000.0,0.00014697,2]
[391102236,1760344231520,-2000.0,0.00014697,2]
[391102237,1760344231529,-2000.0,0.00014697,2]
[391102238,1760344231538,-2000.0,0.00014697,2]
[391102239,1760344231548,-2000.0,0.00014697,2]
[391102240,1760344231557,-2000.0,0.00014697,2]
[391102241,1760344231567,-2000.0,0.00014697,2]
[391102242,1760344231576,-2000.0,0.00014697,2]
[391102243,1760344231587,-2000.0,0.00014697,2]
[391102244,1760344231596,-2000.0,0.00014697,2]
[391102245,1760344231605,-2000.0,0.00014697,2]
[391102246,1760344231615,-1888.72419968,0.00014697,2]
[391102247,1760344231626,-111.27580032,0.00014697,2]
[391102248,1760344231635,-390.97313461,0.00014697,2]
[391102249,1760344231649,-1609.02686539,0.00014697,2]
[391102250,1760344231659,-2000.0,0.00014697,2]
[391102251,1760344231668,-2000.0,0.00014697,2]
[391102252,1760344231677,-2000.0,0.00014697,2]
[391102253,1760344231686,-1178.668,0.00014697,2]
[391102254,1760344231696,-1000.0,0.00014712,2]
[391102255,1760344231705,-1000.0,0.00014712,2]
[391102256,1760344231715,-1000.0,0.00014712,2]
[391102257,1760344231724,-646.65982734,0.00014742,2]
[391102258,1760344231733,-151.0,0.00014742,2]
[391102259,1760344231742,-151.0,0.00014742,2]
[391102260,1760344231751,-151.0,0.00014742,2]
[391102261,1760344231761,-151.0,0.00014742,2]
[391102262,1760344231770,-151.0,0.00014742,2]
[391102263,1760344231779,-151.0,0.00014742,2]
[391102264,1760344231788,-151.0,0.00014742,2]
[391102265,1760344231798,-151.0,0.00014742,2]
[391102267,1760344231807,-151.0,0.00014742,2]
[391102269,1760344231816,-151.0,0.00014742,2]
[391102271,1760344231825,-151.0,0.00014742,2]
[391102272,1760344231835,-151.0,0.00014742,2]
[391102273,1760344231844,-151.0,0.00014742,2]
[391102274,1760344231854,-151.0,0.00014742,2]
[391102275,1760344231863,-500.0,0.00014742,2]
[391102276,1760344231872,-151.0,0.00014742,2]
[391102277,1760344231882,-151.0,0.00014742,2]
[391102278,1760344231893,-500.0,0.00014742,2]
[391102279,1760344231902,-151.0,0.00014742,2]
[391102280,1760344231913,-151.0,0.00014742,2]
[391102281,1760344231922,-500.0,0.00014742,2]
[391102282,1760344231942,-151.0,0.00014742,2]
[391102283,1760344231952,-151.0,0.00014742,2]
[391102285,1760344231961,-500.0,0.00014742,2]
[391102286,1760344231970,-151.0,0.00014742,2]
[391102287,1760344231979,-151.0,0.00014742,2]
[391102288,1760344231989,-151.0,0.00014742,2]
[391102289,1760344232000,-151.0,0.00014742,2]
[391102290,1760344232009,-151.0,0.00014742,2]
[391102291,1760344232019,-151.0,0.00014742,2]
[391102292,1760344232030,-151.0,0.00014742,2]
[391102293,1760344232041,-200.0,0.00014742,2]
[391102294,1760344232052,-109.4676633,0.00014742,2]
[391102295,1760344232068,-59.37457259,0.00014742,2]
[391102296,1760344232078,-151.0,0.00014742,2]
[391102297,1760344232090,-322.6107,0.00014742,2]
[391102298,1760344232100,-279.95866093,0.00014751,2]
[391102299,1760344232154,-452.32133907,0.00014751,2]
[391102300,1760344232165,-265.67026579,0.00014758,2]
[391102304,1760344237380,-593.41340116,0.00014758,2]
[391102305,1760344237490,-237.91633305,0.00014758,2]
[391102306,1760344237501,-328.69771495,0.0001476,2]
[391102311,1760344239410,-65.30228505,0.0001476,2]
[391102312,1760344239420,-2967.615,0.0001476,2]
[391102313,1760344239430,-163.692,0.0001476,2]
[391102314,1760344239440,-3252.8464666,0.0001476,2]
[391102315,1760344239450,-500.0,0.00014761,2]
[391102316,1760344239459,-999.99,0.00014761,2]
[391102317,1760344239469,-2938.22,0.00014761,2]
[391102318,1760344239479,-1503.37819087,0.00014761,2]
[391102319,1760344239491,-2818.48219106,0.00014761,2]
[391102320,1760344239504,-2211.4,0.00014761,2]
[391102321,1760344239516,-523.25610194,0.00014761,2]
[391102322,1760344239527,-547.03466666,0.00014761,2]
[391102323,1760344239539,-277.84,0.00014761,2]
[391102324,1760344239569,-4827.5317327,0.00014761,2]
[391102325,1760344239580,-500.0,0.00014761,2]
[391102326,1760344239591,-302.17412442,0.00014761,2]
[391102327,1760344239601,-502.29884863,0.00014761,2]
[391102328,1760344239624,-1190.82612164,0.00014761,2]
[391102331,1760344239810,-1.6e-07,0.00014761,2]
[391102332,1760344239822,-1000.462372,0.00014761,2]
[391102334,1760344240044,-2.31970205,0.00014761,2]
[391102335,1760344240063,-78989.08594787,0.00014761,2]
[391102336,1760344240074,-150.99,0.00014761,2]
[391102337,1760344240085,-150.99,0.00014761,2]
[391102338,1760344240095,-9999.99,0.00014761,2]
[391102339,1760344240106,-394.0,0.00014762,2]
[391102340,1760344240117,-3198.11,0.00014762,2]
[391102341,1760344240126,-299.99,0.00014762,2]
[391102342,1760344240136,-310.18063601,0.00014762,2]
[391102343,1760344240147,-17.78936399,0.00014762,2]
[391102344,1760344240156,-1000.0,0.0001478,2]
[391102345,1760344240165,-1000.0,0.0001478,2]
[391102346,1760344240175,-1000.0,0.0001478,2]
[391102347,1760344240184,-1000.0,0.0001478,2]
[391102348,1760344240194,-1000.0,0.0001478,2]
[391102349,1760344240203,-1000.0,0.0001478,2]
[391102350,1760344240212,-152.46063601,0.0001478,2]
[391102358,1760344242532,-308.09336399,0.0001478,2]
[391102359,1760344242542,-394.0,0.00014783,2]
[391102360,1760344242552,-20437.59742108,0.000148,2]
[391102361,1760344242564,-1469.615,0.000148,2]
[391102362,1760344242575,-2311.0,0.000148,2]
[391102363,1760344242587,-1114.95745839,0.000148,2]
[391102364,1760344242596,-2599.225,0.00014807,2]
[391102365,1760344242605,-4121.0,0.00014807,2]
[391102366,1760344242616,-622.0,0.00014807,2]
[391102367,1760344242627,-6439.0,0.00014807,2]
[391102368,1760344242638,-500.0,0.00014814,2]
[391102369,1760344242648,-200.0,0.00014814,2]
[391102370,1760344242659,-1097.0,0.00014826,2]
[391102371,1760344242668,-1097.0,0.00014826,2]
[391102372,1760344242679,-293.8351525,0.00014838,2]
[391102373,1760344242688,-9551.50838911,0.0001484,2]
[391102374,1760344242700,-2156.10054162,0.0001484,2]
[391102375,1760344245380,-1516.44,0.00014073,2]
[391102376,1760344245390,-5216.2582,0.0001484,2]
[391102377,1760344245542,-851.08,0.0001484,2]
[391102378,1760344245598,-53302.61216568,0.0001484,2]
[391102380,1760344337346,-241.39494732,0.00013086,2]
[391102381,1760344343815,-181.57736704,0.00013086,2]
[391102389,1760345311327,-250.01503591,0.00012837,2]
[391102390,1760345316062,-138.30657968,0.00012837,2]
[391102391,1760345316128,-49.05361981,0.00013086,2]
[391102397,1760345431559,-27.97406583,0.00013086,2]
[391102398,1760345431570,-990.51173791,0.000135,2]
[391102399,1760345431583,-274.73006917,0.000135,2]
[391102400,1760345431618,-234.75819292,0.000135,2]
[391102401,1760345431627,-250.0,0.000135,7]
[391102402,1760345431637,-527.78,0.00013569,2]
[391102403,1760345431646,-500.0,0.00013672,2]
[391102404,1760345431655,-666.0,0.00013697,3]
[391102405,1760345431665,-441.92200731,0.00013699,2]
[391102406,1760345431680,-558.07799269,0.00013699,2]
[391102407,1760345431689,-200.0,0.00013704,2]
[391102408,1760345431698,-546.92200731,0.00013802,2]
[391102409,1760345431714,-2204.07799269,0.00013802,2]
[391102410,1760345431723,-1200.0,0.00013915,2]
[391102411,1760345431733,-300.0,0.00013915,2]
[391102412,1760345431742,-5111.16,0.00013916,2]
[391102413,1760345431751,-5513.59,0.00013946,2]
[391102414,1760345431762,-610.0,0.00013983,2]
[391102415,1760345431770,-248.71531821,0.00014159,2]
[391102416,1760345431779,-159.49,0.00014307,2]
[391102417,1760345431789,-167.62,0.00014392,2]
[391102418,1760345431798,-422.97231436,0.00014395,2]
[391102419,1760345431808,-250.0,0.00014395,2]
[391102420,1760345431818,-1000.0,0.000144,2]
[391102421,1760345431827,-5374.20597207,0.00014404,2]
[391102422,1760345431852,-931.46014437,0.00014404,2]
[391102423,1760345431864,-6652.15648369,0.00014404,2]
[391102439,1760345437661,-5767.03680044,0.00014404,2]
[391102440,1760345437671,-150.0,0.00014472,2]
[391102441,1760345437681,-297.84660845,0.00014473,2]
[391102442,1760345437690,-500.0,0.00014473,2]
[391102443,1760345437700,-500.0,0.00014473,2]
[391102444,1760345437709,-500.0,0.00014473,2]
[391102445,1760345437719,-501.04316787,0.00014473,2]
[391102446,1760345437727,-500.0,0.00014473,2]
[391102447,1760345437737,-500.0,0.00014473,2]
[391102448,1760345437746,-500.0,0.00014473,2]
[391102449,1760345437756,-500.0,0.00014473,2]
[391102450,1760345437765,-500.0,0.00014473,2]
[391102451,1760345437775,-500.0,0.00014473,2]
[391102452,1760345437784,-331.51333905,0.00014473,2]
[391102453,1760345437794,-500.0,0.00014473,2]
[391102454,1760345437804,-500.67835688,0.00014473,2]
[391102455,1760345437814,-500.0,0.00014473,2]
[391102456,1760345437825,-500.0,0.00014473,2]
[391102457,1760345437834,-500.0,0.00014473,2]
[391102458,1760345437843,-500.0,0.00014473,2]
[391102459,1760345437852,-500.0,0.00014473,2]
[391102460,1760345437861,-7179.93133646,0.00014484,2]
[391102461,1760345437874,-1109.5,0.00014484,2]
[391102462,1760345437885,-425.04326493,0.00014484,2]
[391102463,1760345437896,-10393.2,0.00014484,2]
[391102466,1760345439499,-3114.37196402,0.00014484,2]
[391102467,1760345439511,-577.80632614,0.00014484,2]
[391102468,1760345439520,-167.62,0.0001449,2]
[391102469,1760345439530,-167.62,0.0001449,2]
[391102470,1760345439539,-167.62,0.0001449,2]
[391102471,1760345439549,-167.62,0.0001449,2]
[391102472,1760345439559,-167.62,0.0001449,2]
[391102473,1760345439568,-322.6107,0.00014491,2]
[391102474,1760345439578,-151.0,0.00014491,2]
[391102475,1760345439587,-151.0,0.00014491,2]
[391102476,1760345439597,-151.0,0.00014491,2]
[391102477,1760345439606,-151.0,0.00014491,2]
[391102478,1760345439615,-151.0,0.00014491,2]
[391102479,1760345439625,-77.84044242,0.00014491,2]
[391102480,1760345439641,-156.61959815,0.00014491,2]
[391102481,1760345439652,-151.0,0.00014491,2]
[391102482,1760345439662,-200.0,0.00014491,2]
[391102483,1760345439671,-350.85507897,0.00014491,2]
[391102484,1760345439712,-1649.14492103,0.00014491,2]
[391102485,1760345439722,-1781.22567209,0.00014491,2]
[391102486,1760345439731,-646.65982734,0.00014491,2]
[391102487,1760345439741,-310.29805462,0.00014499,2]
[391102488,1760345439751,-500.0,0.00014499,2]
[391102489,1760345439760,-207.14595045,0.00014499,2]
[391102490,1760345439769,-361.43704245,0.00014499,2]
[391102495,1760345442846,-190.64024619,0.00014404,2]
[391102496,1760345442857,-138.56295755,0.00014499,2]
[391102497,1760345442866,-321.39477149,0.00014499,2]
[391102498,1760345442875,-271.34986622,0.00014499,2]
[391102499,1760345442884,-517.83,0.00014499,2]
[391102500,1760345442894,-1000.0,0.000145,2]
[391102501,1760345442903,-399381.66740288,0.000145,2]
[391102502,1760345442931,-377367.33259712,0.000145,2]
[391102503,1760345442942,-299.99,0.00014504,2]
[391102504,1760345442952,-150.99,0.00014504,2]
[391102505,1760345442961,-1000.46,0.00014504,2]
[391102506,1760345442970,-168.0,0.00014584,2]
[391102507,1760345442979,-805.5594092,0.00014687,2]
[391102508,1760345442988,-13970.58973057,0.000147,2]
[391102509,1760345442999,-2866.127,0.00014725,2]
[391102510,1760345443010,-163.692,0.00014725,2]
[391102511,1760345443020,-517.83,0.00014773,2]
[391102512,1760345443030,-2755.4965811,0.00014787,2]
[391102513,1760345443040,-740.0,0.00014791,2]
[391102514,1760345443050,-556.0,0.00014791,2]
[391102515,1760345443061,-6324.415,0.00014791,2]
[391102516,1760345443073,-4121.0,0.00014791,2]
[391102517,1760345443083,-3267.0,0.00014791,2]
[391102518,1760345443094,-168.0,0.00014813,2]
[391102519,1760345443105,-18724.85940057,0.0001483,2]
[391102520,1760345443116,-2365.07681,0.0001484,2]
[391102521,1760345443127,-317.4204765,0.00014863,2]
[391102522,1760345443137,-151.0,0.00014865,2]
[391102523,1760345443147,-151.0,0.00014865,2]
[391102524,1760345443157,-287.933076,0.00014865,2]
[391102525,1760345443167,-151.0,0.00014865,2]
[391102526,1760345443177,-151.0,0.00014865,2]
[391102527,1760345443188,-151.0,0.00014865,2]
[391102528,1760345443199,-151.0,0.00014865,2]
[391102529,1760345443209,-292.567467,0.00014865,2]
[391102531,1760345443219,-151.0,0.00014865,2]
[391102533,1760345443228,-151.0,0.00014865,2]
[391102534,1760345443240,-151.0,0.00014865,2]
[391102535,1760345443251,-151.0,0.00014865,2]
[391102536,1760345443262,-151.0,0.00014865,2]
[391102537,1760345443274,-151.0,0.00014865,2]
[391102538,1760345443283,-151.0,0.00014865,2]
[391102539,1760345443294,-251.331529,0.00014865,2]
[391102540,1760345443304,-251.331529,0.00014865,2]
[391102541,1760345443316,-251.331529,0.00014865,2]
[391102542,1760345443327,-595.0,0.00014865,2]
[391102543,1760345443336,-500.0,0.00014866,2]
[391102544,1760345443347,-500.0,0.00014867,2]
[391102545,1760345443357,-200.0,0.00014867,2]
[391102546,1760345443366,-150.0,0.0001488,2]
[391102547,1760345443375,-3319.22621654,0.0001488,2]
[391102548,1760345443389,-301.00651905,0.00014899,2]
[391102549,1760345443398,-5000.0,0.000149,2]
[391102550,1760345443407,-459.79567,0.000149,2]
[391102551,1760345443416,-508.9523067,0.000149,2]
[391102552,1760345443425,-18647.951,0.000149,2]
[391102553,1760345443434,-22799.85289152,0.00014901,2]
[391102554,1760345443443,-243.573927,0.00014901,2]
[391102555,1760345443452,-243.573927,0.00014901,2]
[391102556,1760345443462,-243.573927,0.00014901,2]
[391102557,1760345443471,-243.573927,0.00014901,2]
[391102558,1760345443479,-151.0,0.00014901,2]
[391102559,1760345443488,-151.0,0.00014901,2]
[391102560,1760345443498,-151.0,0.00014901,2]
[391102561,1760345443506,-281.781003,0.00014901,2]
[391102562,1760345443515,-151.0,0.00014901,2]
[391102563,1760345443525,-151.0,0.00014901,2]
[391102564,1760345443534,-151.0,0.00014901,2]
[391102565,1760345443543,-236.999095,0.00014901,2]
[391102566,1760345443551,-236.999095,0.00014901,2]
[391102567,1760345443561,-236.999095,0.00014901,2]
[391102568,1760345443570,-236.999095,0.00014901,2]
[391102569,1760345443579,-326.372559,0.00014901,2]
[391102570,1760345443588,-326.372559,0.00014901,2]
[391102571,1760345443597,-151.0,0.00014901,2]
[391102572,1760345443606,-326.372559,0.00014901,2]
[391102573,1760345443615,-151.0,0.00014901,2]
[391102574,1760345443624,-326.372559,0.00014901,2]
[391102575,1760345443633,-533.15473545,0.00014973,2]
[391102576,1760345443642,-500.79700808,0.00014973,2]
[391102577,1760345443651,-500.0,0.00014973,2]
[391102578,1760345443660,-500.0,0.00014973,2]
[391102579,1760345443669,-500.0,0.00014973,2]
[391102580,1760345443679,-500.0,0.00014973,2]
[391102581,1760345443688,-500.0,0.00014973,2]
[391102582,1760345443696,-500.0,0.00014973,2]
[391102583,1760345443706,-500.0,0.00014973,2]
[391102584,1760345443715,-500.0,0.00014973,2]
[391102585,1760345443724,-500.0,0.00014973,2]
[391102586,1760345443734,-500.0,0.00014973,2]
[391102587,1760345443743,-610.23,0.00014973,2]
[391102588,1760345443753,-150.0,0.00014981,2]
[391102589,1760345443762,-500.0,0.00014981,2]
[391102590,1760345443772,-500.0,0.00014981,2]
[391102591,1760345443781,-500.0,0.00014981,2]
[391102592,1760345443791,-150.0,0.00014981,2]
[391102593,1760345443799,-150.0,0.00014981,2]
[391102594,1760345443809,-150.0,0.00014981,2]
[391102595,1760345443818,-500.0,0.00014981,2]
[391102596,1760345443828,-500.0,0.00014981,2]
[391102597,1760345443837,-150.0,0.00014981,2]
[391102598,1760345443846,-150.0,0.00014981,2]
[391102599,1760345443856,-500.0,0.00014981,2]
[391102600,1760345443865,-150.0,0.00014981,2]
[391102601,1760345443874,-150.0,0.00014981,2]
[391102602,1760345443883,-150.0,0.00014981,2]
[391102603,1760345443892,-500.0,0.00014981,2]
[391102604,1760345443903,-150.0,0.00014981,2]
[391102605,1760345443912,-284.15834705,0.00014981,2]
[391102606,1760345443921,-500.0,0.00014981,2]
[391102607,1760345443931,-150.0,0.00014981,2]
[391102608,1760345443940,-150.0,0.00014981,2]
[391102609,1760345443949,-1295.0,0.00014981,2]
[391102610,1760345443958,-500.0,0.00014981,2]
[391102611,1760345443967,-201.01884101,0.00014981,2]
[391102612,1760345443977,-150.0,0.00014981,2]
[391102613,1760345443986,-500.0,0.00014981,2]
[391102614,1760345443995,-150.0,0.00014981,2]
[391102615,1760345444004,-150.0,0.00014981,2]
[391102616,1760345444014,-500.0,0.00014981,2]
[391102617,1760345444023,-500.0,0.00014981,2]
[391102618,1760345444032,-150.0,0.00014981,2]
[391102619,1760345444041,-1369.84079417,0.0001499,2]
[391102620,1760345444051,-1369.84079417,0.0001499,2]
[391102621,1760345444060,-14457.90232758,0.00014999,2]
[391102622,1760345444069,-155.0,0.00014999,2]
[391102623,1760345444078,-151.0,0.00014999,2]
[391102624,1760345444087,-151.0,0.00014999,2]
[391102625,1760345444096,-151.0,0.00014999,2]
[391102626,1760345444105,-151.0,0.00014999,2]
[391102627,1760345444114,-151.0,0.00014999,2]
[391102628,1760345444123,-151.0,0.00014999,2]
[391102629,1760345444132,-301.616552,0.00014999,2]
[391102630,1760345444142,-151.0,0.00014999,2]
[391102631,1760345444153,-174.330465,0.00014999,2]
[391102632,1760345444163,-151.0,0.00014999,2]
[391102633,1760345444172,-151.0,0.00014999,2]
[391102634,1760345444181,-251.331529,0.00014999,2]
[391102635,1760345444191,-251.331529,0.00014999,2]
[391102636,1760345444200,-945.0,0.00015,2]
[391102637,1760345444209,-132402.2057566,0.00015,2]
[391102638,1760345445899,-251.331529,0.00014865,2]
[391102639,1760345445909,-131.212031,0.00014981,2]
[391102640,1760345445927,-18.787969,0.00014981,2]
[391102641,1760345445937,-251.331529,0.00014999,2]
[391102642,1760345445947,-251.331529,0.00014999,2]
[391102644,1760345445956,-441.381712,0.00015,2]
[391102650,1760345445998,-266.875,0.00015,2]
[391102654,1760345446013,-165010.97959925,0.00015,2]
[391102656,1760345446024,-5556.5,0.00015,2]
[391102657,1760345446036,-8775.28589743,0.00015,2]
[391102658,1760345446047,-12003.392439,0.00015,2]
[391102659,1760345446079,-145726.18459206,0.00015,2]
[391102765,1760345461314,-187.12457914,0.00013086,2]
[391102766,1760345464094,-167.40642244,0.00013086,2]
[391102767,1760345492405,-1000.0,0.00014499,15]
[391102768,1760345492426,-1000.0,0.00014499,15]
[391102769,1760345492447,-1000.0,0.00014499,15]
[391102770,1760345492466,-1000.0,0.00014499,15]
[391102771,1760345492487,-525.60047624,0.00014499,15]
[391102772,1760345548350,800.0,0.00012,2]
[391102773,1760345548970,525.457,0.00012,2]
[391102802,1760346181845,-145.46899842,0.00013086,2]
[391102803,1760346181868,-92.15942402,0.00013086,2]
[391102804,1760346272744,-398.98200939,0.00013086,2]
[391102805,1760346276819,-101.01799061,0.00013086,2]
[391102806,1760346276842,-51.19743025,0.00013086,2]
[391102807,1760346331935,-258.93908445,0.00013085,2]
[391102810,1760346559803,-271.90459762,0.00013086,2]
[391102811,1760346559825,-44.00334522,0.00013086,2]
[391102812,1760346559847,-453.32,0.00013699,2]
[391102813,1760346559867,-1162.21,0.00013826,2]
[391102814,1760346559888,-872.81384913,0.00013882,2]
[391102815,1760346559909,-161.74,0.00013924,2]
[391102816,1760346559929,-506.0,0.00014,2]
[391102817,1760346559951,-1803.55,0.00014014,2]
[391102818,1760346559972,-151.0,0.00014093,2]
[391102819,1760346559993,-151.0,0.00014093,2]
[391102820,1760346560014,-151.0,0.00014093,2]
[391102821,1760346560039,-151.0,0.00014093,2]
[391102822,1760346560063,-151.85575831,0.00014093,2]
[391102823,1760346560084,-1200.0,0.00014385,2]
[391102824,1760346560106,-300.0,0.00014385,2]
[391102825,1760346560127,-248.71531821,0.00014386,2]
[391102826,1760346560148,-611.606375,0.00014386,2]
[391102827,1760346560168,-151.0,0.00014386,2]
[391102828,1760346560188,-621.78829552,0.00014386,2]
[391102829,1760346560208,-300.0,0.00014393,2]
[391102830,1760346560229,-195.0,0.00014395,2]
[391102831,1760346560250,-2500.0,0.00014395,2]
[391102832,1760346560271,-1000.0,0.000144,2]
[391102833,1760346560292,-1840.49246099,0.00014616,2]
[391102834,1760346561049,-704.50753901,0.00014616,2]
[391102835,1760346561071,-238.165,0.00014616,2]
[391102836,1760346561094,-171.0,0.00014642,2]
[391102837,1760346561116,-171.0,0.00014689,2]
[391102838,1760346561137,-604.1695569,0.00014699,2]
[391102839,1760346561157,-837.5838117,0.00014706,2]
[391102840,1760346561179,-171.0,0.00014748,2]
[391102841,1760346561201,-2217.0,0.00014807,2]
[391102842,1760346561221,-2221.90405,0.0001485,2]
[391102843,1760346561242,-605.0,0.00014868,2]
[391102844,1760346561261,-200.0,0.0001488,2]
[391102845,1760346561281,-200.0,0.00014891,2]
[391102846,1760346561302,-200.0,0.00014891,2]
[391102847,1760346561321,-150.0,0.00014899,2]
[391102849,1760346561343,-5000.0,0.000149,2]
[391102850,1760346561364,-1000.0,0.000149,2]
[391102851,1760346561384,-308.67004239,0.000149,2]
[391102852,1760346561434,-691.32995761,0.000149,2]
[391102853,1760346561456,-1000.0,0.000149,2]
[391102854,1760346561476,-992.0,0.000149,3]
[391102855,1760346561497,-2330.326,0.000149,2]
[391102856,1760346561518,-164.621,0.000149,2]
[391102857,1760346561537,-2984.855,0.000149,2]
[391102858,1760346561558,-367.836536,0.000149,2]
[391102859,1760346561578,-187.79401058,0.000149,2]
[391102860,1760346561598,-339.3015378,0.000149,2]
[391102861,1760346561618,-225.6659374,0.000149,2]
[391102862,1760346561638,-5716.27002061,0.000149,2]
[391102863,1760346561983,-10639.67061554,0.000149,2]
[391102864,1760346562006,-193.21224141,0.000149,2]
[391102865,1760346562027,-157.69349701,0.000149,2]
[391102866,1760346562050,-171.0,0.000149,2]
[391102867,1760346562070,-3074.0,0.00014912,2]
[391102868,1760346562090,-500.0,0.00014973,2]
[391102869,1760346562111,-264.42364604,0.00014973,2]
[391102870,1760346562322,-235.57635396,0.00014973,2]
[391102871,1760346562343,-500.0,0.00014973,2]
[391102872,1760346562362,-500.0,0.00014973,2]
[391102873,1760346562383,-500.0,0.00014973,2]
[391102874,1760346562403,-500.0,0.00014973,2]
[391102875,1760346562423,-500.0,0.00014973,2]
[391102877,1760346562443,-500.0,0.00014973,2]
[391102878,1760346562462,-500.0,0.00014973,2]
[391102879,1760346562482,-500.0,0.00014973,2]
[391102880,1760346562501,-150.0,0.00014981,2]
[391102881,1760346562532,-150.0,0.00014981,2]
[391102882,1760346562555,-150.0,0.00014981,2]
[391102883,1760346562575,-150.0,0.00014981,2]
[391102884,1760346562596,-500.0,0.00014981,2]
[391102885,1760346562617,-150.0,0.00014981,2]
[391102886,1760346562639,-150.0,0.00014981,2]
[391102887,1760346562658,-150.0,0.00014981,2]
[391102888,1760346562684,-247.85575287,0.00014985,2]
[391102889,1760346562704,-151.08764944,0.00014985,2]
[391102890,1760346562725,-323.20519007,0.00014985,2]
[391102891,1760346562748,-500.0,0.00014985,2]
[391102892,1760346562771,-621.81755409,0.00014985,2]
[391102893,1760346562795,-500.0,0.00014985,2]
[391102894,1760346562819,-500.0,0.00014985,2]
[391102895,1760346563174,-500.0,0.00014985,2]
[391102896,1760346563201,-150.0,0.00014986,2]
[391102897,1760346563224,-500.0,0.00014986,2]
[391102898,1760346563245,-150.0,0.00014986,2]
[391102899,1760346563268,-150.0,0.00014986,2]
[391102900,1760346563297,-150.0,0.00014986,2]
[391102901,1760346563321,-150.0,0.00014986,2]
[391102902,1760346563342,-150.0,0.00014986,2]
[391102903,1760346563364,-500.0,0.00014986,2]
[391102904,1760346563385,-1262.0,0.00014986,2]
[391102905,1760346563408,-150.0,0.00014986,2]
[391102906,1760346563429,-150.0,0.00014986,2]
[391102907,1760346563455,-150.0,0.00014986,2]
[391102908,1760346563475,-500.0,0.00014986,2]
[391102909,1760346563495,-500.0,0.00014986,2]
[391102910,1760346563516,-150.0,0.00014986,2]
[391102911,1760346563537,-1108.45749957,0.00014986,2]
[391102912,1760346563573,-2114.54250043,0.00014986,2]
[391102913,1760346563593,-2718.0,0.00014986,2]
[391102914,1760346563613,-1353.0,0.00014986,2]
[391102915,1760346563634,-519.88654,0.0001499,2]
[391102916,1760346563655,-2765.9468289,0.00014994,2]
[391102917,1760346563679,-500.0,0.00014999,2]
[391102918,1760346563703,-224.97634004,0.00014999,2]
[391102919,1760346563725,-217.20863823,0.00014999,2]
[391102920,1760346563747,-456.81549812,0.00014999,2]
[391102921,1760346563771,-4129.62365428,0.00014999,2]
[391102922,1760346563805,-11191.26260512,0.00014999,2]
[391102923,1760346563827,-3808.73739488,0.00014999,2]
[391102925,1760346564282,-1191.26260512,0.00014999,2]
[391102926,1760346564302,-150.0,0.00014999,2]
[391102927,1760346564323,-150.0,0.00014999,2]
[391102928,1760346564344,-13508.73739488,0.00015,2]
[391102929,1760346564709,-15000.0,0.00015,2]
[391102931,1760346565237,-15000.0,0.00015,2]
[391102932,1760346565580,-15000.0,0.00015,2]